fUSD/lending_fUSD_20260531
["ID","MTS","AMOUNT","RATE_DAILY","PERIOD"]
[423494271,1780164642000,-151.0,0.00020103,2]
[423494275,1780164642000,-13345.59120549,0.00020152,2]
[423494276,1780164642000,-156.1,0.00020381,2]
[423494277,1780164642000,-211.82501588,0.00020675,2]
[423494278,1780164642000,-209.0,0.00021,2]
[423494279,1780164642000,-215.0,0.00021,2]
[423494280,1780164642000,-329.0,0.00021,2]
[423494281,1780164642000,-360.0,0.00021,2]
[423494283,1780164642000,-705.0,0.00021,2]
[423494282,1780164642000,-154.0,0.00021,2]
[423494284,1780164642000,-184.0,0.00021,2]
[423494274,1780164642000,-6404.91,0.00020145,2]
[423494317,1780164642000,-705.0,0.00023,2]
[423494322,1780164642000,-166.66,0.00023321,30]
[423494379,1780164642000,-156.1,0.00026296,2]
[423494352,1780164642000,-150.0,0.00025007,2]
[423494351,1780164642000,-204.64,0.00025,2]
[423494354,1780164642000,-150.0,0.00025007,2]
[423494357,1780164642000,-150.0,0.00025007,2]
[423494356,1780164642000,-150.0,0.00025007,2]
[423494355,1780164642000,-150.223,0.00025007,2]
[423494353,1780164642000,-150.0,0.00025007,2]
[423494362,1780164642000,-150.597,0.00025007,2]
[423494363,1780164642000,-151.0,0.00025007,2]
[423494359,1780164642000,-150.524,0.00025007,2]
[423494364,1780164642000,-3550.0,0.00025007,2]
[423494365,1780164642000,-1356.0,0.00025007,2]
[423494341,1780164642000,-1000.0,0.00024658,2]
[423494367,1780164642000,-1226.0,0.00025007,2]
[423494368,1780164642000,-1594.97,0.00025249,7]
[423494373,1780164642000,-1302.51104043,0.00025874,2]
[423494374,1780164642000,-9570.10769657,0.00025874,2]
[423494371,1780164642000,-6094.37,0.00025786,2]
[423494372,1780164642000,-163.28,0.000258,7]
[423494370,1780164642000,-400.57,0.00025786,2]
[423494376,1780164642000,-224.40886264,0.00025912,2]
[423494375,1780164642000,-159.62619924,0.00025912,2]
[423494377,1780164642000,-500.0,0.00026,2]
[423494378,1780164642000,-550.0,0.00026,2]
[423494315,1780164642000,-360.0,0.00023,2]
[423494381,1780164642000,-707.43829241,0.00026313,2]
[423494369,1780164642000,-13345.59120549,0.00025273,2]
[423494350,1780164642000,-1047.61960593,0.00025,2]
[423494361,1780164642000,-167.287,0.00025007,2]
[423494346,1780164642000,-346.0,0.00025,2]
[423494324,1780164642000,-166.66,0.00023774,30]
[423494344,1780164642000,-209.0,0.00025,2]
[423494321,1780164642000,-2318.0,0.00023298,3]
[423494320,1780164642000,-313.45446805,0.00023016,2]
[423494319,1780164642000,-500.0,0.00023016,2]
[423494323,1780164642000,-1594.97,0.00023499,2]
[423494325,1780164642000,-10298.19396019,0.00023904,2]
[423494326,1780164642000,-209.0,0.00024,2]
[423494327,1780164642000,-215.0,0.00024,2]
[423494328,1780164642000,-329.0,0.00024,2]
[423494329,1780164642000,-360.0,0.00024,2]
[423494332,1780164642000,-705.0,0.00024,2]
[423494330,1780164642000,-160.8477614,0.00024,2]
[423494334,1780164642000,-500.0,0.00024,2]
[423494318,1780164642000,-184.0,0.00023,2]
[423494335,1780164642000,-9999.99,0.00024174,2]
[423494337,1780164642000,-156.1,0.00024324,2]
[423494345,1780164642000,-225.0,0.00025,2]
[423494347,1780164642000,-373.0,0.00025,2]
[423494348,1780164642000,-716.0,0.00025,2]
[423494343,1780164642000,-500.0,0.00024999,2]
[423494342,1780164642000,-213.32,0.00024658,2]
[423494349,1780164642000,-188.0,0.00025,2]
[423494339,1780164642000,-6066.0,0.00024657,2]
[423494338,1780164642000,-1000.0,0.00024626,2]
[423494336,1780164642000,-150.99,0.00024174,2]
[423494333,1780164642000,-184.0,0.00024,2]
[423494340,1780164642000,-3638.0,0.00024657,2]
[423494425,1780164643000,-151.0,0.00027397,2]
[423494424,1780164643000,-151.0,0.00027397,2]
[423494423,1780164643000,-22005.43,0.00027397,10]
[423494410,1780164643000,-500.0,0.00027397,2]
[423494421,1780164643000,-151.0,0.00027397,2]
[423494420,1780164643000,-213.32,0.00027397,2]
[423494418,1780164643000,-300.0,0.00027397,2]
[423494417,1780164643000,-1500.0,0.00027397,2]
[423494416,1780164643000,-151.0,0.00027397,2]
[423494422,1780164643000,-14094.0,0.00027397,10]
[423494419,1780164643000,-647.75,0.00027397,20]
[423494427,1780164643000,-1679.55,0.000274,14]
[423494437,1780164643000,-622.24,0.0002755,30]
[423494428,1780164643000,-568.15,0.000274,7]
[423494429,1780164643000,-738.55,0.000274,7]
[423494431,1780164643000,-380.15,0.000274,2]
[423494433,1780164643000,-380.15,0.000274,2]
[423494435,1780164643000,-150.0,0.00027521,2]
[423494430,1780164643000,-380.15,0.000274,2]
[423494432,1780164643000,-380.15,0.000274,2]
[423494436,1780164643000,-212.93,0.0002755,2]
[423494438,1780164643000,-570.49,0.0002755,30]
[423494434,1780164643000,-380.15,0.000274,2]
[423494439,1780164643000,-570.03,0.0002755,30]
[423494413,1780164643000,-500.0,0.00027397,2]
[423494426,1780164643000,-151.0,0.00027397,2]
[423494414,1780164643000,-443.15839363,0.00027397,2]
[423494440,1780164643000,-620.74,0.0002755,30]
[423494415,1780164643000,-150.0,0.00027397,2]
[423494383,1780164643000,-1594.97,0.00026999,7]
[423494390,1780164643000,-151.0,0.00027397,2]
[423494385,1780164643000,-840.36,0.00027396,2]
[423494387,1780164643000,-151.0,0.00027397,2]
[423494392,1780164643000,-151.0,0.00027397,2]
[423494391,1780164643000,-151.0,0.00027397,2]
[423494393,1780164643000,-151.0,0.00027397,2]
[423494389,1780164643000,-151.0,0.00027397,2]
[423494395,1780164643000,-151.0,0.00027397,2]
[423494394,1780164643000,-151.0,0.00027397,2]
[423494397,1780164643000,-500.0,0.00027397,2]
[423494398,1780164643000,-500.0,0.00027397,2]
[423494396,1780164643000,-231.901232,0.00027397,2]
[423494399,1780164643000,-500.0,0.00027397,2]
[423494400,1780164643000,-500.0,0.00027397,2]
[423494402,1780164643000,-500.0,0.00027397,2]
[423494401,1780164643000,-500.0,0.00027397,2]
[423494405,1780164643000,-500.0,0.00027397,2]
[423494404,1780164643000,-500.0,0.00027397,2]
[423494403,1780164643000,-500.0,0.00027397,2]
[423494406,1780164643000,-500.0,0.00027397,2]
[423494408,1780164643000,-500.0,0.00027397,2]
[423494407,1780164643000,-500.0,0.00027397,2]
[423494409,1780164643000,-500.0,0.00027397,2]
[423494412,1780164643000,-500.0,0.00027397,2]
[423494411,1780164643000,-500.0,0.00027397,2]
[423494444,1780164643000,-212.93,0.0002758,7]
[423494441,1780164643000,-1053.63,0.0002755,30]
[423494447,1780164643000,-212.8,0.00027611,30]
[423494471,1780164643000,-212.93,0.00027824,2]
[423494475,1780164643000,-618.730055,0.00027835,7]
[423494476,1780164643000,-618.730055,0.00027835,7]
[423494478,1780164643000,-618.730055,0.00027835,7]
[423494479,1780164643000,-4752.960664,0.00027835,7]
[423494477,1780164643000,-618.730055,0.00027835,7]
[423494481,1780164643000,-4752.960664,0.00027835,7]
[423494480,1780164643000,-4752.960664,0.00027835,7]
[423494483,1780164643000,-151.0,0.00027835,7]
[423494487,1780164643000,-151.0,0.00027872,7]
[423494484,1780164643000,-1000.0,0.00027855,4]
[423494482,1780164643000,-4752.960664,0.00027835,7]
[423494472,1780164643000,-212.8,0.00027824,2]
[423494485,1780164643000,-212.93,0.00027855,7]
[423494488,1780164643000,-151.0,0.00027872,7]
[423494489,1780164643000,-151.0,0.00027872,7]
[423494491,1780164643000,-500.0,0.00027872,2]
[423494492,1780164643000,-500.0,0.00027872,2]
[423494495,1780164643000,-500.0,0.00027872,2]
[423494494,1780164643000,-500.0,0.00027872,2]
[423494498,1780164643000,-500.0,0.00027872,2]
[423494493,1780164643000,-500.0,0.00027872,2]
[423494497,1780164643000,-500.0,0.00027872,2]
[423494496,1780164643000,-500.0,0.00027872,2]
[423494490,1780164643000,-273.79528,0.00027872,7]
[423494499,1780164643000,-500.0,0.00027872,2]
[423494486,1780164643000,-212.8,0.00027855,7]
[423494470,1780164643000,-163.28,0.000278,7]
[423494443,1780164643000,-500.0,0.00027553,7]
[423494469,1780164643000,-212.8,0.00027794,30]
[423494473,1780164643000,-13345.59120549,0.00027833,2]
[423494501,1780164643000,-500.0,0.00027872,2]
[423494442,1780164643000,-212.8,0.0002755,2]
[423494450,1780164643000,-6066.0,0.00027657,2]
[423494448,1780164643000,-212.93,0.00027641,2]
[423494446,1780164643000,-212.93,0.00027611,30]
[423494445,1780164643000,-212.8,0.0002758,7]
[423494449,1780164643000,-212.8,0.00027641,2]
[423494452,1780164643000,-212.93,0.00027672,7]
[423494453,1780164643000,-212.8,0.00027672,7]
[423494454,1780164643000,-212.93,0.00027702,30]
[423494458,1780164643000,-570.49,0.00027711,7]
[423494456,1780164643000,-152.0,0.00027707,7]
[423494451,1780164643000,-3638.0,0.00027657,2]
[423494455,1780164643000,-212.8,0.00027702,30]
[423494457,1780164643000,-622.24,0.00027711,7]
[423494474,1780164643000,-151.0,0.00027835,7]
[423494466,1780164643000,-212.8,0.00027763,7]
[423494467,1780164643000,-176.84,0.00027788,2]
[423494465,1780164643000,-212.93,0.00027763,7]
[423494464,1780164643000,-212.8,0.00027733,2]
[423494462,1780164643000,-10298.19396019,0.00027715,2]
[423494468,1780164643000,-212.93,0.00027794,30]
[423494460,1780164643000,-1053.63,0.00027711,7]
[423494459,1780164643000,-620.74,0.00027711,7]
[423494461,1780164643000,-570.03,0.00027711,7]
[423494463,1780164643000,-212.93,0.00027733,2]
[423494547,1780164644000,-151.0,0.00027872,7]
[423494543,1780164644000,-208.075309,0.00027872,7]
[423494540,1780164644000,-208.075309,0.00027872,7]
[423494548,1780164644000,-151.0,0.00027872,7]
[423494533,1780164644000,-201.069007,0.00027872,7]
[423494538,1780164644000,-151.0,0.00027872,7]
[423494537,1780164644000,-290.134187,0.00027872,7]
[423494536,1780164644000,-290.134187,0.00027872,7]
[423494535,1780164644000,-290.134187,0.00027872,7]
[423494545,1780164644000,-622.24,0.00027872,2]
[423494539,1780164644000,-213.342771,0.00027872,7]
[423494541,1780164644000,-208.075309,0.00027872,7]
[423494555,1780164644000,-212.8,0.00027885,30]
[423494546,1780164644000,-570.49,0.00027872,2]
[423494544,1780164644000,-151.0,0.00027872,7]
[423494549,1780164644000,-151.0,0.00027872,7]
[423494550,1780164644000,-151.0,0.00027872,7]
[423494551,1780164644000,-1053.63,0.00027872,2]
[423494552,1780164644000,-620.74,0.00027872,2]
[423494561,1780164644000,-212.8,0.00027977,30]
[423494557,1780164644000,-212.8,0.00027916,2]
[423494560,1780164644000,-212.93,0.00027977,30]
[423494553,1780164644000,-570.03,0.00027872,2]
[423494556,1780164644000,-212.93,0.00027916,2]
[423494554,1780164644000,-212.93,0.00027885,30]
[423494530,1780164644000,-201.069007,0.00027872,7]
[423494542,1780164644000,-208.075309,0.00027872,7]
[423494531,1780164644000,-201.069007,0.00027872,7]
[423494517,1780164644000,-500.0,0.00027872,2]
[423494534,1780164644000,-290.134187,0.00027872,7]
[423494502,1780164644000,-500.0,0.00027872,2]
[423494558,1780164644000,-212.93,0.00027946,7]
[423494505,1780164644000,-500.0,0.00027872,2]
[423494503,1780164644000,-500.0,0.00027872,2]
[423494506,1780164644000,-500.0,0.00027872,2]
[423494511,1780164644000,-500.0,0.00027872,2]
[423494507,1780164644000,-500.0,0.00027872,2]
[423494508,1780164644000,-500.0,0.00027872,2]
[423494509,1780164644000,-500.0,0.00027872,2]
[423494510,1780164644000,-500.0,0.00027872,2]
[423494512,1780164644000,-500.0,0.00027872,2]
[423494514,1780164644000,-500.0,0.00027872,2]
[423494513,1780164644000,-500.0,0.00027872,2]
[423494515,1780164644000,-500.0,0.00027872,2]
[423494516,1780164644000,-500.0,0.00027872,2]
[423494518,1780164644000,-500.0,0.00027872,2]
[423494519,1780164644000,-500.0,0.00027872,2]
[423494520,1780164644000,-500.0,0.00027872,2]
[423494522,1780164644000,-500.0,0.00027872,2]
[423494521,1780164644000,-500.0,0.00027872,2]
[423494523,1780164644000,-298.342053,0.00027872,2]
[423494524,1780164644000,-151.0,0.00027872,7]
[423494526,1780164644000,-517.131074,0.00027872,7]
[423494527,1780164644000,-517.131074,0.00027872,7]
[423494525,1780164644000,-151.991218,0.00027872,7]
[423494528,1780164644000,-517.131074,0.00027872,7]
[423494529,1780164644000,-517.131074,0.00027872,7]
[423494532,1780164644000,-201.069007,0.00027872,7]
[423494504,1780164644000,-500.0,0.00027872,2]
[423494559,1780164644000,-212.8,0.00027946,7]
[423494563,1780164644000,-600.0,0.00028,2]
[423494597,1780164644000,-191.41566632,0.00028212,2]
[423494596,1780164644000,-202.24863394,0.00028212,2]
[423494598,1780164644000,-162.33164099,0.00028217,2]
[423494599,1780164644000,-187.08030932,0.0002823,2]
[423494600,1780164644000,-162.68392568,0.00028232,2]
[423494601,1780164644000,-156.1,0.00028267,2]
[423494605,1780164644000,-200.0,0.000284,7]
[423494602,1780164644000,-514.0,0.00028336,10]
[423494603,1780164644000,-1053.65,0.00028355,2]
[423494609,1780164644000,-209.00647482,0.000286,7]
[423494606,1780164644000,-568.15,0.000284,7]
[423494604,1780164644000,-1679.55,0.000284,14]
[423494608,1780164644000,-1053.65,0.00028516,30]
[423494607,1780164644000,-738.55,0.000284,7]
[423494610,1780164644000,-1053.65,0.00028677,7]
[423494611,1780164644000,-159.62619924,0.00028689,2]
[423494621,1780164644000,-568.15,0.000294,7]
[423494612,1780164644000,-224.40886264,0.00028689,2]
[423494614,1780164644000,-1053.65,0.00028838,2]
[423494613,1780164644000,-1594.97,0.00028749,7]
[423494620,1780164644000,-163.28,0.000292,7]
[423494615,1780164644000,-150.0,0.00028897,2]
[423494622,1780164644000,-738.55,0.000294,7]
[423494618,1780164644000,-1053.68,0.00029,30]
[423494616,1780164644000,-265.92,0.00029,8]
[423494617,1780164644000,-265.92,0.00029,8]
[423494562,1780164644000,-200.0,0.00028,7]
[423494595,1780164644000,-177.84004506,0.00028212,2]
[423494593,1780164644000,-1000.0,0.00028199,20]
[423494619,1780164644000,-335.33,0.00029184,2]
[423494592,1780164644000,-620.74,0.00028194,7]
[423494594,1780164644000,-200.0,0.000282,20]
[423494567,1780164644000,-150.0,0.00028007,2]
[423494572,1780164644000,-1213.65,0.00028007,2]
[423494568,1780164644000,-150.0,0.00028007,2]
[423494566,1780164644000,-150.0,0.00028007,2]
[423494571,1780164644000,-1356.0,0.00028007,2]
[423494570,1780164644000,-3550.0,0.00028007,2]
[423494569,1780164644000,-150.0,0.00028007,2]
[423494564,1780164644000,-212.93,0.00028007,2]
[423494573,1780164644000,-159.62619924,0.00028013,2]
[423494575,1780164644000,-570.49,0.00028033,30]
[423494585,1780164644000,-212.8,0.00028099,2]
[423494578,1780164644000,-1053.63,0.00028033,30]
[423494574,1780164644000,-622.24,0.00028033,30]
[423494565,1780164644000,-212.8,0.00028007,2]
[423494577,1780164644000,-620.74,0.00028033,30]
[423494576,1780164644000,-570.03,0.00028033,30]
[423494588,1780164644000,-622.24,0.00028194,7]
[423494590,1780164644000,-1053.63,0.00028194,7]
[423494589,1780164644000,-570.49,0.00028194,7]
[423494587,1780164644000,-212.96,0.0002813,7]
[423494586,1780164644000,-213.04,0.0002813,7]
[423494591,1780164644000,-570.03,0.00028194,7]
[423494581,1780164644000,-212.93,0.00028068,30]
[423494579,1780164644000,-212.93,0.00028038,7]
[423494584,1780164644000,-212.93,0.00028099,2]
[423494582,1780164644000,-212.8,0.00028068,30]
[423494583,1780164644000,-200.0,0.0002808,2]
[423494580,1780164644000,-212.8,0.00028038,7]
[423494661,1780164645000,-150.0,0.00030341,2]
[423494662,1780164645000,-13345.59120549,0.00030393,2]
[423494660,1780164645000,-156.1,0.00030239,2]
[423494658,1780164645000,-404.0,0.000302,5]
[423494657,1780164645000,-200.0,0.00030137,2]
[423494656,1780164645000,-151.0,0.00030137,7]
[423494667,1780164645000,-158.44658964,0.00030418,2]
[423494654,1780164645000,-500.0,0.00030129,7]
[423494652,1780164645000,-290.0,0.00030052,2]
[423494664,1780164645000,-367.53609314,0.00030418,2]
[423494659,1780164645000,-252.48,0.000302,2]
[423494646,1780164645000,-1679.55,0.000297,14]
[423494672,1780164645000,-237.94165802,0.00030423,2]
[423494663,1780164645000,-164.37,0.00030411,120]
[423494666,1780164645000,-417.98051015,0.00030418,2]
[423494668,1780164645000,-159.26845892,0.00030418,2]
[423494675,1780164645000,-228.34467194,0.00030423,2]
[423494670,1780164645000,-381.82414335,0.00030418,2]
[423494673,1780164645000,-161.17312284,0.00030423,2]
[423494674,1780164645000,-486.99492297,0.00030423,2]
[423494671,1780164645000,-574.24699896,0.00030418,2]
[423494677,1780164645000,-424.51580145,0.00030423,2]
[423494679,1780164645000,-225.45513201,0.00030423,2]
[423494669,1780164645000,-209.42320591,0.00030418,2]
[423494676,1780164645000,-187.29427337,0.00030423,2]
[423494651,1780164645000,-150.0,0.00030052,2]
[423494665,1780164645000,-207.88144199,0.00030418,2]
[423494653,1780164645000,-500.0,0.00030129,7]
[423494636,1780164645000,-215.0,0.00029615,30]
[423494649,1780164645000,-150.0,0.00030052,2]
[423494678,1780164645000,-160.31470885,0.00030423,2]
[423494623,1780164645000,-307.43907439,0.00029417,2]
[423494631,1780164645000,-184.91719198,0.00029541,2]
[423494633,1780164645000,-325.36785137,0.00029556,2]
[423494629,1780164645000,-324.66328198,0.00029541,2]
[423494627,1780164645000,-190.91207167,0.00029536,2]
[423494624,1780164645000,-1000.0,0.00029499,43]
[423494626,1780164645000,-1000.0,0.00029519,6]
[423494632,1780164645000,-374.16061864,0.00029554,2]
[423494625,1780164645000,-1000.0,0.00029499,64]
[423494630,1780164645000,-212.25790073,0.00029541,2]
[423494628,1780164645000,-382.83133264,0.00029536,2]
[423494647,1780164645000,-1000.0,0.000297,7]
[423494635,1780164645000,-152.0,0.00029615,30]
[423494634,1780164645000,-209.0,0.00029613,30]
[423494638,1780164645000,-152.0,0.00029615,30]
[423494639,1780164645000,-153.0,0.00029615,30]
[423494640,1780164645000,-360.0,0.00029615,30]
[423494642,1780164645000,-156.0,0.00029615,30]
[423494641,1780164645000,-154.0,0.00029615,30]
[423494644,1780164645000,-184.0,0.00029623,30]
[423494643,1780164645000,-705.0,0.00029615,30]
[423494645,1780164645000,-158.0,0.00029624,30]
[423494650,1780164645000,-150.0,0.00030052,2]
[423494648,1780164645000,-650.0,0.0003,2]
[423494655,1780164645000,-213.32,0.00030137,2]
[423494637,1780164645000,-329.0,0.00029615,30]
[423494683,1780164645000,-223.92159834,0.00030423,2]
[423494689,1780164645000,-219.1848868,0.00030437,2]
[423494739,1780164645000,-450.91026403,0.00031012,2]
[423494714,1780164645000,-3638.0,0.00030657,2]
[423494713,1780164645000,-158.0,0.00030624,30]
[423494712,1780164645000,-184.0,0.00030623,30]
[423494718,1780164645000,-316.89317929,0.00031007,2]
[423494720,1780164645000,-711.36018026,0.00031007,2]
[423494722,1780164645000,-808.99453576,0.00031007,2]
[423494721,1780164645000,-453.55950979,0.00031007,2]
[423494725,1780164645000,-572.73621502,0.00031007,2]
[423494730,1780164645000,-322.34624569,0.00031012,2]
[423494727,1780164645000,-3550.0,0.00031007,2]
[423494724,1780164645000,-418.84641183,0.00031007,2]
[423494723,1780164645000,-318.53691784,0.00031007,2]
[423494708,1780164645000,-154.0,0.00030615,30]
[423494729,1780164645000,-475.88331605,0.00031012,2]
[423494726,1780164645000,-765.66266528,0.00031007,2]
[423494732,1780164645000,-649.32656396,0.00031012,2]
[423494735,1780164645000,-201.27701203,0.00031012,2]
[423494734,1780164645000,-374.58854673,0.00031012,2]
[423494731,1780164645000,-358.56615094,0.00031012,2]
[423494737,1780164645000,-196.15631375,0.00031012,2]
[423494733,1780164645000,-456.68934388,0.00031012,2]
[423494741,1780164645000,-467.37069976,0.00031012,2]
[423494740,1780164645000,-321.01133949,0.00031012,2]
[423494738,1780164645000,-320.6294177,0.00031012,2]
[423494736,1780164645000,-636.77370218,0.00031012,2]
[423494685,1780164645000,-241.5458014,0.00030423,2]
[423494728,1780164645000,-1086.029,0.00031007,2]
[423494707,1780164645000,-360.0,0.00030615,30]
[423494719,1780164645000,-174.39080887,0.00031007,2]
[423494711,1780164645000,-705.0,0.00030615,30]
[423494709,1780164645000,-156.0,0.00030615,30]
[423494684,1780164645000,-369.83438397,0.00030423,2]
[423494690,1780164645000,-218.36614928,0.00030437,2]
[423494682,1780164645000,-161.38757049,0.00030423,2]
[423494681,1780164645000,-233.68534988,0.00030423,2]
[423494680,1780164645000,-160.50566975,0.00030423,2]
[423494688,1780164645000,-206.76936888,0.00030437,2]
[423494687,1780164645000,-561.24092795,0.00030437,2]
[423494686,1780164645000,-210.49511948,0.00030437,2]
[423494692,1780164645000,-178.33526263,0.00030439,2]
[423494693,1780164645000,-208.23236755,0.00030439,2]
[423494694,1780164645000,-154.58408784,0.00030439,2]
[423494703,1780164645000,-215.0,0.00030615,30]
[423494695,1780164645000,-171.09097698,0.00030439,2]
[423494691,1780164645000,-211.32837876,0.00030439,2]
[423494706,1780164645000,-153.0,0.00030615,30]
[423494700,1780164645000,-568.15,0.000306,7]
[423494701,1780164645000,-738.55,0.000306,7]
[423494702,1780164645000,-209.0,0.00030613,30]
[423494698,1780164645000,-1594.97,0.00030498,7]
[423494697,1780164645000,-488.05177705,0.00030439,2]
[423494699,1780164645000,-707.43829241,0.00030584,2]
[423494705,1780164645000,-152.0,0.00030615,30]
[423494715,1780164645000,-551.3041397,0.00031007,2]
[423494696,1780164645000,-174.6393377,0.00030439,2]
[423494716,1780164645000,-626.97076522,0.00031007,2]
[423494704,1780164645000,-329.0,0.00030615,30]
[423494717,1780164645000,-167.18836342,0.00031007,2]
[423494780,1780164646000,-10298.19396019,0.00031526,2]
[423494783,1780164646000,-957.07833161,0.00031595,2]
[423494770,1780164646000,-150.30096206,0.00031126,2]
[423494785,1780164646000,-2251.87,0.00031613,7]
[423494779,1780164646000,-1313.59,0.00031455,7]
[423494772,1780164646000,-163.28,0.000312,7]
[423494771,1780164646000,-257.92,0.000312,7]
[423494774,1780164646000,-1313.59,0.00031296,7]
[423494776,1780164646000,-230.882083,0.00031296,7]
[423494773,1780164646000,-222.08,0.000312,7]
[423494775,1780164646000,-151.0,0.00031296,7]
[423494781,1780164646000,-889.20022532,0.00031595,2]
[423494778,1780164646000,-250.0,0.00031397,7]
[423494787,1780164646000,-935.40154659,0.00031615,2]
[423494791,1780164646000,-153.0,0.00031615,30]
[423494784,1780164646000,-1313.59,0.00031613,7]
[423494782,1780164646000,-1011.2431697,0.00031595,2]
[423494786,1780164646000,-209.0,0.00031613,30]
[423494789,1780164646000,-329.0,0.00031615,30]
[423494790,1780164646000,-152.0,0.00031615,30]
[423494801,1780164646000,-158.0,0.00031624,30]
[423494793,1780164646000,-154.0,0.00031615,30]
[423494792,1780164646000,-360.0,0.00031615,30]
[423494800,1780164646000,-184.0,0.00031623,30]
[423494805,1780164646000,-150.0,0.00031858,2]
[423494803,1780164646000,-1313.59,0.00031772,7]
[423494802,1780164646000,-1000.0,0.00031731,94]
[423494788,1780164646000,-215.0,0.00031615,30]
[423494777,1780164646000,-151.0,0.00031296,7]
[423494799,1780164646000,-813.41962842,0.00031617,2]
[423494768,1780164646000,-1000.0,0.00031124,18]
[423494804,1780164646000,-150.30096206,0.00031817,2]
[423494742,1780164646000,-203.06048155,0.00031012,2]
[423494743,1780164646000,-376.91567119,0.00031012,2]
[423494744,1780164646000,-213.89060392,0.00031012,2]
[423494748,1780164646000,-172.95555271,0.00031026,2]
[423494747,1780164646000,-554.75157595,0.00031012,2]
[423494745,1780164646000,-249.05987865,0.00031012,2]
[423494753,1780164646000,-436.73229855,0.00031026,2]
[423494746,1780164646000,-447.84319669,0.00031012,2]
[423494752,1780164646000,-438.36977359,0.00031026,2]
[423494754,1780164646000,-483.09160281,0.00031026,2]
[423494749,1780164646000,-420.99023897,0.00031026,2]
[423494750,1780164646000,-748.32123727,0.00031026,2]
[423494751,1780164646000,-413.53873776,0.00031026,2]
[423494756,1780164646000,-209.24015663,0.00031027,2]
[423494759,1780164646000,-416.4647351,0.00031027,2]
[423494758,1780164646000,-226.87043613,0.00031027,2]
[423494755,1780164646000,-422.65675752,0.00031027,2]
[423494762,1780164646000,-209.93639366,0.00031027,2]
[423494757,1780164646000,-356.67052526,0.00031027,2]
[423494761,1780164646000,-309.16817569,0.00031027,2]
[423494760,1780164646000,-183.67527336,0.00031027,2]
[423494765,1780164646000,-199.96381516,0.00031027,2]
[423494763,1780164646000,-342.18195396,0.00031027,2]
[423494764,1780164646000,-349.2786754,0.00031027,2]
[423494766,1780164646000,-650.73570274,0.00031028,2]
[423494767,1780164646000,-200.0,0.00031096,2]
[423494769,1780164646000,-150.34873258,0.00031126,2]
[423494797,1780164646000,-705.0,0.00031615,30]
[423494819,1780164646000,-151.0,0.00032329,7]
[423494807,1780164646000,-200.0,0.00032055,2]
[423494840,1780164646000,-213.32,0.00032877,2]
[423494837,1780164646000,-207.00864086,0.0003285,15]
[423494839,1780164646000,-660.1267279,0.00032877,2]
[423494838,1780164646000,-344.31148276,0.00032854,2]
[423494841,1780164646000,-1679.55,0.000329,14]
[423494846,1780164646000,-350.0,0.00033014,5]
[423494848,1780164646000,-150.0,0.00033451,2]
[423494845,1780164646000,-13345.59120549,0.00032953,2]
[423494849,1780164646000,-233.96143464,0.00033484,116]
[423494847,1780164646000,-1500.0,0.000334,7]
[423494854,1780164646000,-840.36,0.00033609,2]